fUST/lending_fUST_20250206
["ID","MTS","AMOUNT","RATE_DAILY","PERIOD"]
[351830754,1738805446601,-500.0,0.00013835,2]
[351830755,1738805446611,-2472.94,0.00013835,2]
[351830756,1738805446621,-500.0,0.00013835,2]
[351830757,1738805446631,-151.0,0.00013835,2]
[351830758,1738805446641,-554.04,0.00013835,2]
[351830759,1738805446651,-500.0,0.00013835,2]
[351830760,1738805446661,-500.0,0.00013835,2]
[351830761,1738805446670,-1027.98,0.00013835,2]
[351830762,1738805446681,-582.67,0.00013835,2]
[351830763,1738805446699,-174.685209,0.00013835,2]
[351830764,1738805446720,-151.0,0.00013835,2]
[351830765,1738805446735,-500.0,0.00013835,2]
[351830766,1738805446744,-500.0,0.00013835,2]
[351830767,1738805446754,-876.2,0.00013835,2]
[351830768,1738805446764,-500.0,0.00013835,2]
[351830769,1738805446774,-500.0,0.00013835,2]
[351830770,1738805446783,-500.0,0.00013835,2]
[351830771,1738805446793,-500.0,0.00013835,2]
[351830772,1738805446803,-500.0,0.00013835,2]
[351830773,1738805446813,-500.0,0.00013835,2]
[351830774,1738805446822,-500.0,0.00013835,2]
[351830775,1738805446832,-500.0,0.00013835,2]
[351830776,1738805446842,-500.0,0.00013835,2]
[351830777,1738805446852,-500.0,0.00013835,2]
[351830778,1738805446862,-151.0,0.00013835,2]
[351830779,1738805446872,-1557.09,0.00013835,2]
[351830780,1738805446883,-675.1,0.00013835,2]
[351830781,1738805446892,-500.0,0.00013835,2]
[351830782,1738805446902,-500.0,0.00013835,2]
[351830783,1738805446913,-500.0,0.00013835,2]
[351830784,1738805446923,-537.61,0.00013835,2]
[351830785,1738805446933,-500.0,0.00013835,2]
[351830786,1738805446943,-151.0,0.00013835,2]
[351830787,1738805446953,-151.0,0.00013835,2]
[351830788,1738805446963,-721.47,0.00013835,2]
[351830789,1738805446973,-1185.77,0.00013835,2]
[351830790,1738805446983,-500.0,0.00013835,2]
[351830791,1738805446994,-1076.24,0.00013835,2]
[351830792,1738805447004,-741.61,0.00013835,2]
[351830793,1738805447014,-500.0,0.00013835,2]
[351830794,1738805447024,-581.91,0.00013835,2]
[351830795,1738805447035,-152.675225,0.00013835,2]
[351830796,1738805447044,-500.0,0.00013835,2]
[351830797,1738805447054,-674.55,0.00013835,2]
[351830798,1738805447064,-3273.65,0.00013835,2]
[351830799,1738805447075,-489.36134288,0.00013835,2]
[351830800,1738805447087,-500.0,0.00013835,2]
[351830801,1738805447096,-500.0,0.00013835,2]
[351830802,1738805447105,-500.0,0.00013835,2]
[351830803,1738805447114,-500.0,0.00013835,2]
[351830804,1738805447124,-500.0,0.00013835,2]
[351830805,1738805447134,-151.0,0.00013835,2]
[351830806,1738805447143,-500.0,0.00013835,2]
[351830807,1738805447154,-980.47,0.00013835,2]
[351830808,1738805447166,-500.0,0.00013835,2]
[351830809,1738805447177,-1105.67,0.00013835,2]
[351830810,1738805447187,-500.0,0.00013835,2]
[351830811,1738805447197,-685.72,0.00013835,2]
[351830812,1738805447207,-326.81375176,0.00013835,2]
[351830813,1738805447217,-500.0,0.00013835,2]
[351830814,1738805447227,-503.07,0.00013835,2]
[351830815,1738805447237,-1297.62,0.00013835,2]
[351830816,1738805447247,-332.23124973,0.00013835,2]
[351830817,1738805447257,-500.0,0.00013835,2]
[351830818,1738805447268,-500.0,0.00013835,2]
[351830819,1738805447282,-500.0,0.00013835,2]
[351830820,1738805447296,-717.63,0.00013835,2]
[351830821,1738805447307,-500.0,0.00013835,2]
[351830822,1738805447318,-500.0,0.00013835,2]
[351830823,1738805447328,-512.4,0.00013835,2]
[351830824,1738805447339,-500.0,0.00013835,2]
[351830825,1738805447350,-500.0,0.00013835,2]
[351830826,1738805447361,-938.44,0.00013835,2]
[351830827,1738805447371,-1081.08,0.00013835,2]
[351830828,1738805447383,-500.0,0.00013835,2]
[351830829,1738805447393,-500.0,0.00013835,2]
[351830830,1738805447403,-500.0,0.00013835,2]
[351830831,1738805447414,-809.78,0.00013835,2]
[351830832,1738805447427,-500.0,0.00013835,2]
[351830833,1738805447437,-500.0,0.00013835,2]
[351830834,1738805447448,-500.0,0.00013835,2]
[351830835,1738805447457,-500.0,0.00013835,2]
[351830836,1738805447467,-500.0,0.00013835,2]
[351830837,1738805447478,-500.0,0.00013835,2]
[351830838,1738805447488,-500.0,0.00013835,2]
[351830839,1738805447498,-1662.57,0.00013835,2]
[351830840,1738805447509,-500.0,0.00013835,2]
[351830841,1738805447519,-287.124491,0.00013835,2]
[351830842,1738805447530,-500.0,0.00013835,2]
[351830843,1738805447540,-151.0,0.00013835,2]
[351830844,1738805447550,-500.0,0.00013835,2]
[351830845,1738805447560,-892.51,0.00013835,2]
[351830846,1738805447570,-500.0,0.00013835,2]
[351830847,1738805447580,-540.23,0.00013835,2]
[351830848,1738805447590,-607.51,0.00013835,2]
[351830849,1738805447600,-680.23,0.00013835,2]
[351830850,1738805447611,-1424.68,0.00013835,2]
[351830851,1738805447620,-500.0,0.00013835,2]
[351830852,1738805447631,-216.85421115,0.00013835,2]
[351830853,1738805447641,-500.0,0.00013835,2]
[351830854,1738805447651,-558.66,0.00013835,2]
[351830855,1738805447660,-151.0,0.00013835,2]
[351830856,1738805447670,-500.0,0.00013835,2]
[351830857,1738805447680,-558.74,0.00013835,2]
[351830858,1738805447689,-529.19641124,0.00013835,2]
[351830859,1738805447699,-716.65,0.00013835,2]
[351830860,1738805447708,-500.0,0.00013835,2]
[351830861,1738805447718,-500.0,0.00013835,2]
[351830862,1738805447728,-500.0,0.00013835,2]
[351830863,1738805447738,-247.035217,0.00013835,2]
[351830864,1738805447749,-500.0,0.00013835,2]
[351830865,1738805447760,-500.0,0.00013835,2]
[351830866,1738805447770,-500.0,0.00013835,2]
[351830867,1738805447780,-714.91,0.00013835,2]
[351830868,1738805447790,-510.19,0.00013835,2]
[351830869,1738805447801,-500.0,0.00013835,2]
[351830870,1738805447811,-500.0,0.00013835,2]
[351830871,1738805447821,-151.0,0.00013835,2]
[351830872,1738805447830,-500.0,0.00013835,2]
[351830873,1738805447839,-151.0,0.00013835,2]
[351830874,1738805447849,-500.0,0.00013835,2]
[351830875,1738805447860,-151.0,0.00013835,2]
[351830876,1738805447870,-151.0,0.00013835,2]
[351830877,1738805447880,-500.0,0.00013835,2]
[351830878,1738805447890,-804.82,0.00013835,2]
[351830879,1738805447900,-151.0,0.00013835,2]
[351830880,1738805447910,-151.0,0.00013835,2]
[351830881,1738805447920,-500.0,0.00013835,2]
[351830882,1738805447931,-151.0,0.00013835,2]
[351830883,1738805447941,-500.0,0.00013835,2]
[351830884,1738805447951,-500.0,0.00013835,2]
[351830885,1738805447961,-500.0,0.00013835,2]
[351830886,1738805447971,-585.62,0.00013835,2]
[351830887,1738805447981,-1232.72,0.00013835,2]
[351830888,1738805447991,-527.27,0.00013835,2]
[351830889,1738805448001,-649.5,0.00013835,2]
[351830890,1738805448010,-500.0,0.00013835,2]
[351830891,1738805448020,-1000.0,0.00013835,2]
[351830892,1738805448031,-500.0,0.00013835,2]
[351830893,1738805448041,-500.0,0.00013835,2]
[351830894,1738805448052,-845.34,0.00013835,2]
[351830895,1738805448063,-500.0,0.00013835,2]
[351830896,1738805448074,-671.53,0.00013835,2]
[351830897,1738805448085,-474.11489,0.00013835,2]
[351830898,1738805448097,-500.0,0.00013835,2]
[351830899,1738805448108,-474.11489,0.00013835,2]
[351830900,1738805448118,-500.0,0.00013835,2]
[351830901,1738805448128,-882.94,0.00013835,2]
[351830902,1738805448139,-500.0,0.00013835,2]
[351830903,1738805448150,-2366.51,0.00013835,2]
[351830904,1738805448163,-500.0,0.00013835,2]
[351830905,1738805448173,-500.0,0.00013835,2]
[351830906,1738805448184,-151.0,0.00013835,2]
[351830907,1738805448194,-2560.02,0.00013835,2]
[351830908,1738805448206,-153.70785,0.00013835,2]
[351830909,1738805448217,-500.0,0.00013835,2]
[351830910,1738805448228,-656.92,0.00013835,2]
[351830911,1738805448239,-500.0,0.00013835,2]
[351830912,1738805448250,-153.70785,0.00013835,2]
[351830913,1738805448261,-500.0,0.00013835,2]
[351830914,1738805448272,-153.324186,0.00013835,2]
[351830915,1738805448283,-894.59,0.00013835,2]
[351830916,1738805448295,-30538.35,0.00013835,2]
[351830917,1738805448306,-500.0,0.00013835,2]
[351830918,1738805448317,-151.0,0.00013835,2]
[351830919,1738805448328,-7668.5,0.00013835,2]
[351830920,1738805448340,-740.41,0.00013835,2]
[351830921,1738805448352,-151.0,0.00013835,2]
[351830922,1738805448363,-500.0,0.00013835,2]
[351830923,1738805448373,-1125.68,0.00013835,2]
[351830924,1738805448384,-500.0,0.00013835,2]
[351830925,1738805448395,-3872.16,0.00013835,2]
[351830926,1738805448406,-11870.84,0.00013835,2]
[351830927,1738805448420,-500.0,0.00013835,2]
[351830928,1738805448431,-500.0,0.00013835,2]
[351830929,1738805448442,-151.0,0.00013835,2]
[351830930,1738805448453,-500.0,0.00013835,2]
[351830931,1738805448463,-1008.59,0.00013835,2]
[351830932,1738805448473,-500.0,0.00013835,2]
[351830933,1738805448485,-151.0,0.00013835,2]
[351830934,1738805448496,-500.0,0.00013835,2]
[351830935,1738805448704,-1288.59,0.00013835,2]
[351830936,1738805448715,-386.00369179,0.00013835,2]
[351830937,1738805448725,-500.0,0.00013835,2]
[351830938,1738805448736,-4610.79,0.00013835,2]
[351830939,1738805448746,-2047.55,0.00013835,2]
[351830940,1738805448757,-500.0,0.00013835,2]
[351830941,1738805448767,-500.0,0.00013835,2]
[351830942,1738805448777,-4977.11,0.00013835,2]
[351830943,1738805448788,-901.17,0.00013835,2]
[351830944,1738805448798,-1315.93,0.00013835,2]
[351830945,1738805448809,-232.343639,0.00013835,2]
[351830946,1738805448818,-1059.75,0.00013835,2]
[351830947,1738805448828,-500.0,0.00013835,2]
[351830948,1738805448838,-500.0,0.00013835,2]
[351830949,1738805448847,-500.0,0.00013835,2]
[351830950,1738805448858,-151.0,0.00013835,2]
[351830951,1738805448869,-500.0,0.00013835,2]
[351830952,1738805448880,-6581.4,0.00013835,2]
[351830953,1738805448891,-500.0,0.00013835,2]
[351830954,1738805448901,-500.0,0.00013835,2]
[351830955,1738805448912,-1869.47,0.00013835,2]
[351830956,1738805448923,-151.0,0.00013835,2]
[351830957,1738805448934,-500.0,0.00013835,2]
[351830958,1738805448945,-500.0,0.00013835,2]
[351830959,1738805448955,-151.0,0.00013835,2]
[351830960,1738805448967,-152.052962,0.00013835,2]
[351830961,1738805448977,-974.32,0.00013835,2]
[351830962,1738805448989,-151.0,0.00013835,2]
[351830963,1738805449001,-465.97352666,0.00013835,2]
[351830964,1738805449014,-151.0,0.00013835,2]
[351830965,1738805449026,-512.12,0.00013835,2]
[351830966,1738805449037,-636.12,0.00013835,2]
[351830967,1738805449050,-500.0,0.00013835,2]
[351830968,1738805449062,-500.0,0.00013835,2]
[351830969,1738805449073,-500.0,0.00013835,2]
[351830970,1738805449083,-151.0,0.00013835,2]
[351830971,1738805449094,-841.36,0.00013835,2]
[351830972,1738805449104,-500.0,0.00013835,2]
[351830973,1738805449114,-500.0,0.00013835,2]
[351830974,1738805449125,-500.0,0.00013835,2]
[351830975,1738805449135,-500.0,0.00013835,2]
[351830976,1738805449146,-500.0,0.00013835,2]
[351830977,1738805449156,-500.0,0.00013835,2]
[351830978,1738805449170,-500.0,0.00013835,2]
[351830979,1738805449180,-500.0,0.00013835,2]
[351830980,1738805449190,-1312.57,0.00013835,2]
[351830981,1738805449200,-800.4,0.00013835,2]
[351830982,1738805449211,-2139.93,0.00013835,2]
[351830983,1738805449222,-151.0,0.00013835,2]
[351830984,1738805449233,-500.0,0.00013835,2]
[351830985,1738805449242,-500.0,0.00013835,2]
[351830986,1738805449252,-500.0,0.00013835,2]
[351830987,1738805449262,-29386.9,0.00013835,2]
[351830988,1738805449273,-744.31,0.00013835,2]
[351830989,1738805449283,-500.0,0.00013835,2]
[351830990,1738805449293,-863.13,0.00013835,2]
[351830991,1738805449303,-2256.44,0.00013835,2]
[351830992,1738805449314,-86895.18,0.00013835,2]
[351830993,1738805449324,-215.92803,0.00013835,2]
[351830994,1738805449335,-590.5,0.00013835,2]
[351830995,1738805449345,-151.0,0.00013835,2]
[351830996,1738805449358,-215.92803,0.00013835,2]
[351830997,1738805449368,-656.56,0.00013835,2]
[351830998,1738805449378,-500.0,0.00013835,2]
[351830999,1738805449392,-10451.64,0.00013835,2]
[351831000,1738805449403,-151.0,0.00013835,2]
[351831001,1738805449415,-500.0,0.00013835,2]
[351831002,1738805449426,-2464.11,0.00013835,2]
[351831003,1738805449436,-500.0,0.00013835,2]
[351831004,1738805449446,-4302.82,0.00013835,2]
[351831005,1738805449456,-500.0,0.00013835,2]
[351831006,1738805449466,-500.0,0.00013835,2]
[351831007,1738805449475,-500.0,0.00013835,2]
[351831008,1738805449485,-500.0,0.00013835,2]
[351831009,1738805449495,-500.0,0.00013835,2]
[351831010,1738805449505,-518.61,0.00013835,2]
[351831011,1738805449515,-151.0,0.00013835,2]
[351831012,1738805449524,-2620.39,0.00013835,2]
[351831013,1738805449534,-500.0,0.00013835,2]
[351831014,1738805449544,-500.0,0.00013835,2]
[351831015,1738805449554,-1177.1,0.00013835,2]
[351831016,1738805449565,-578.76,0.00013835,2]
[351831017,1738805449575,-500.0,0.00013835,2]
[351831018,1738805449585,-219.611113,0.00013835,2]
[351831019,1738805449595,-219.611113,0.00013835,2]
[351831020,1738805449604,-526.78,0.00013835,2]
[351831021,1738805449613,-775.96,0.00013835,2]
[351831022,1738805449624,-515.51,0.00013835,2]
[351831023,1738805449634,-500.0,0.00013835,2]
[351831024,1738805449644,-151.0,0.00013835,2]
[351831025,1738805449654,-4338.16,0.00013835,2]
[351831026,1738805449665,-2307.89,0.00013835,2]
[351831027,1738805449675,-151.0,0.00013835,2]
[351831028,1738805449684,-651.94,0.00013835,2]
[351831029,1738805449694,-500.0,0.00013835,2]
[351831030,1738805449703,-151.0,0.00013835,2]
[351831031,1738805449713,-500.0,0.00013835,2]
[351831032,1738805449722,-500.0,0.00013835,2]
[351831033,1738805449731,-6315.43,0.00013835,2]
[351831034,1738805449741,-645.33,0.00013835,2]
[351831035,1738805449750,-500.0,0.00013835,2]
[351831036,1738805449759,-967.15,0.00013835,2]
[351831037,1738805449769,-790.48,0.00013835,2]
[351831038,1738805449778,-1673.8,0.00013835,2]
[351831039,1738805449788,-1000.0,0.00013835,2]
[351831040,1738805449798,-500.0,0.00013835,2]
[351831041,1738805449807,-500.0,0.00013835,2]
[351831042,1738805449818,-607.76,0.00013835,2]
[351831043,1738805449828,-3204.41,0.00013835,2]
[351831044,1738805449838,-500.0,0.00013835,2]
[351831045,1738805449847,-2440.27,0.00013835,2]
[351831046,1738805449856,-500.0,0.00013835,2]
[351831047,1738805449866,-500.0,0.00013835,2]
[351831048,1738805449874,-500.0,0.00013835,2]
[351831049,1738805449884,-850.12,0.00013835,2]
[351831050,1738805449893,-151.0,0.00013835,2]
[351831051,1738805449903,-2591.59,0.00013835,2]
[351831052,1738805449914,-500.0,0.00013835,2]
[351831053,1738805449924,-151.0,0.00013835,2]
[351831054,1738805449933,-500.0,0.00013835,2]
[351831055,1738805449943,-500.0,0.00013835,2]
[351831056,1738805449952,-500.0,0.00013835,2]
[351831057,1738805449962,-2322.8,0.00013835,2]
[351831058,1738805449971,-500.0,0.00013835,2]
[351831059,1738805449980,-1129.48,0.00013835,2]
[351831060,1738805449990,-500.0,0.00013835,2]
[351831061,1738805449999,-500.0,0.00013835,2]
[351831062,1738805450009,-646.86,0.00013835,2]
[351831063,1738805450019,-496.18771056,0.00013835,2]
[351831064,1738805450028,-500.0,0.00013835,2]
[351831065,1738805450038,-692.65,0.00013835,2]
[351831066,1738805450047,-500.0,0.00013835,2]
[351831067,1738805450057,-687.8,0.00013835,2]
[351831068,1738805450067,-500.0,0.00013835,2]
[351831069,1738805450076,-3379.23,0.00013835,2]
[351831070,1738805450086,-500.0,0.00013835,2]
[351831071,1738805450096,-154.119608,0.00013835,2]
[351831072,1738805450106,-500.0,0.00013835,2]
[351831073,1738805450116,-7134.75,0.00013835,2]
[351831074,1738805450125,-500.0,0.00013835,2]
[351831075,1738805450135,-656.9,0.00013835,2]
[351831076,1738805450145,-500.0,0.00013835,2]
[351831077,1738805450155,-500.0,0.00013835,2]
[351831078,1738805450167,-563.22,0.00013835,2]
[351831079,1738805450176,-554.03,0.00013835,2]
[351831080,1738805450186,-838.06,0.00013835,2]
[351831081,1738805450197,-500.0,0.00013835,2]
[351831082,1738805450207,-502.5836398,0.00013835,2]
[351831083,1738805450216,-501.07370022,0.00013835,2]
[351831084,1738805450226,-1319.39,0.00013835,2]
[351831085,1738805450235,-500.0,0.00013835,2]
[351831086,1738805450245,-500.0,0.00013835,2]
[351831087,1738805450254,-151.0,0.00013835,2]
[351831088,1738805450264,-500.0,0.00013835,2]
[351831089,1738805450274,-500.0,0.00013835,2]
[351831090,1738805450284,-530.56,0.00013835,2]
[351831091,1738805450293,-500.0,0.00013835,2]
[351831092,1738805450303,-515.16,0.00013835,2]
[351831093,1738805450313,-160.052569,0.00013835,2]
[351831094,1738805450323,-500.0,0.00013873,2]
[351831095,1738805450333,-12587.92493949,0.00013944,2]
[351831096,1738805450346,-796.9060457,0.00013967,2]
[351831097,1738805450355,-23048.95400021,0.0001397,2]
[351831098,1738805450364,-160.40545001,0.00013971,2]
[351831099,1738805450374,-500.0,0.00013972,2]
[351831100,1738805450385,-500.0,0.00013972,2]
[351831101,1738805450395,-500.0,0.00013972,2]
[351831102,1738805450404,-151.0,0.00013972,2]
[351831103,1738805450415,-999.37,0.00013972,2]
[351831104,1738805450424,-500.0,0.00013972,2]
[351831105,1738805450435,-692.4,0.00013972,2]
[351831106,1738805450444,-500.0,0.00013972,2]
[351831107,1738805450454,-500.0,0.00013972,2]
[351831108,1738805450464,-500.0,0.00013972,2]
[351831109,1738805450474,-500.0,0.00013972,2]
[351831110,1738805450483,-500.0,0.00013972,2]
[351831111,1738805450493,-587.5,0.00013972,2]
[351831112,1738805450503,-500.0,0.00013972,2]
[351831113,1738805450512,-555.55,0.00013972,2]
[351831114,1738805450521,-501.73,0.00013972,2]
[351831115,1738805450532,-500.0,0.00013972,2]
[351831116,1738805450541,-500.0,0.00013972,2]
[351831117,1738805450551,-500.0,0.00013972,2]
[351831118,1738805450560,-500.0,0.00013972,2]
[351831119,1738805450570,-500.0,0.00013972,2]
[351831120,1738805450579,-152.554602,0.00013972,2]
[351831121,1738805450589,-500.0,0.00013972,2]
[351831122,1738805450598,-500.0,0.00013972,2]
[351831123,1738805450608,-500.0,0.00013972,2]
[351831124,1738805450619,-500.0,0.00013972,2]
[351831125,1738805450628,-500.0,0.00013972,2]
[351831126,1738805450638,-500.0,0.00013972,2]
[351831127,1738805450647,-557.69,0.00013972,2]
[351831128,1738805450657,-500.0,0.00013972,2]
[351831129,1738805450669,-500.0,0.00013972,2]
[351831130,1738805450678,-500.0,0.00013972,2]
[351831131,1738805450687,-500.0,0.00013972,2]
[351831132,1738805450697,-500.0,0.00013972,2]
[351831133,1738805450707,-500.0,0.00013972,2]
[351831134,1738805450716,-500.0,0.00013972,2]
[351831135,1738805450725,-500.0,0.00013972,2]
[351831136,1738805450735,-610.08,0.00013972,2]
[351831137,1738805450744,-151.0,0.00013972,2]
[351831138,1738805450754,-500.0,0.00013972,2]
[351831139,1738805450763,-500.0,0.00013972,2]
[351831140,1738805450773,-500.0,0.00013972,2]
[351831141,1738805450782,-500.0,0.00013972,2]
[351831142,1738805450792,-500.0,0.00013972,2]
[351831143,1738805450801,-1415.22,0.00013972,2]
[351831144,1738805450811,-875.16,0.00013972,2]
[351831145,1738805450820,-500.57,0.00013972,2]
[351831146,1738805450830,-185.72420012,0.00013972,2]
[351831147,1738805450839,-500.0,0.00013972,2]
[351831148,1738805450848,-683.32,0.00013972,2]
[351831149,1738805450858,-151.0,0.00013972,2]
[351831150,1738805450869,-560.72,0.00013972,2]
[351831151,1738805450879,-546.36,0.00013972,2]
[351831152,1738805450890,-765.79,0.00013972,2]
[351831153,1738805450903,-500.0,0.00013972,2]
[351831154,1738805450916,-1443.99,0.00013972,2]
[351831155,1738805450925,-690.79,0.00013972,2]
[351831156,1738805450935,-500.0,0.00013972,2]
[351831157,1738805450944,-500.0,0.00013972,2]
[351831158,1738805450954,-500.0,0.00013972,2]
[351831159,1738805450963,-500.0,0.00013972,2]
[351831160,1738805450972,-500.0,0.00013972,2]
[351831161,1738805450982,-603.3,0.00013972,2]
[351831162,1738805450991,-151.0,0.00013972,2]
[351831163,1738805451001,-500.0,0.00013972,2]
[351831164,1738805451011,-500.0,0.00013972,2]
[351831165,1738805451021,-500.0,0.00013972,2]
[351831166,1738805451031,-500.0,0.00013972,2]
[351831167,1738805451041,-500.0,0.00013972,2]
[351831168,1738805451051,-500.0,0.00013972,2]
[351831169,1738805451061,-2372.64,0.00013972,2]
[351831170,1738805451070,-151.0,0.00013972,2]
[351831171,1738805451079,-663.9,0.00013972,2]
[351831172,1738805451089,-500.0,0.00013972,2]
[351831173,1738805451098,-1257.98,0.00013972,2]
[351831174,1738805451108,-500.0,0.00013972,2]
[351831175,1738805451117,-500.0,0.00013972,2]
[351831176,1738805451127,-151.0,0.00013972,2]
[351831177,1738805451136,-987.84,0.00013972,2]
[351831178,1738805451146,-275.474401,0.00013972,2]
[351831179,1738805451156,-500.0,0.00013972,2]
[351831180,1738805451169,-1026.06526033,0.00013972,2]
[351831181,1738805451857,-500.0,0.00013698,2]
[351831182,1738805451867,-500.0,0.00013835,2]
[351831183,1738805451876,-424.07622003,0.00013835,2]
[351831184,1738805451887,-1446.87473967,0.00013972,2]
[351831185,1738805451898,-500.0,0.00013972,2]
[351831186,1738805451908,-554.04,0.00013972,2]
[351831187,1738805451920,-500.0,0.00013972,2]
[351831188,1738805451929,-1027.98,0.00013972,2]
[351831189,1738805451938,-582.67,0.00013972,2]
[351831190,1738805451948,-500.0,0.00013972,2]
[351831191,1738805451958,-500.0,0.00013972,2]
[351831192,1738805451968,-876.2,0.00013972,2]
[351831193,1738805451978,-500.0,0.00013972,2]
[351831194,1738805451987,-500.0,0.00013972,2]
[351831195,1738805451997,-500.0,0.00013972,2]
[351831196,1738805452006,-340.94285612,0.00013972,2]
[351831197,1738805452358,-159.05714388,0.00013972,2]
[351831198,1738805452368,-340.94285612,0.00013972,2]
[351831199,1738805490755,160.0,0.00018788,120]
[351831200,1738805550789,160.0,0.00019187,120]
[351831201,1738805614434,1000.0,0.00019,120]
[351831202,1738805740363,2000.0,0.00019,120]
[351831205,1738805797615,1000.0,0.00019,120]
[351831206,1738805876053,1701.0,0.00019,120]
[351831255,1738806632375,-1000.0,0.00013,2]
[351831257,1738806632386,-300.0,0.00013696,2]
[351831259,1738806632395,-500.0,0.00013697,2]
[351831261,1738806632404,-348.94316642,0.00013697,2]
[351831263,1738806632413,-500.0,0.00013697,2]
[351831265,1738806632423,-500.0,0.00013697,2]
[351831267,1738806632432,-500.0,0.00013697,2]
[351831269,1738806632442,-500.0,0.00013697,2]
[351831271,1738806632451,-500.0,0.00013697,2]
[351831273,1738806632461,-500.0,0.00013697,2]
[351831275,1738806632471,-500.0,0.00013697,2]
[351831277,1738806632480,-500.0,0.00013697,2]
[351831279,1738806632489,-500.0,0.00013697,2]
[351831280,1738806632499,-500.0,0.00013697,2]
[351831281,1738806632508,-500.0,0.00013697,2]
[351831282,1738806632518,-500.0,0.00013697,2]
[351831283,1738806632527,-500.0,0.00013697,2]
[351831284,1738806632536,-500.0,0.00013697,2]
[351831285,1738806632546,-500.0,0.00013697,2]
[351831286,1738806632556,-500.0,0.00013697,2]
[351831287,1738806632565,-500.0,0.00013697,2]
[351831288,1738806632575,-500.0,0.00013697,2]
[351831289,1738806632586,-500.0,0.00013697,2]
[351831290,1738806632596,-500.0,0.00013697,2]
[351831291,1738806632608,-500.0,0.00013697,2]
[351831292,1738806632619,-500.0,0.00013697,2]
[351831293,1738806632629,-500.0,0.00013697,2]
[351831294,1738806632640,-500.0,0.00013697,2]
[351831295,1738806632650,-500.0,0.00013697,2]
[351831296,1738806632659,-500.0,0.00013697,2]
[351831297,1738806632668,-173.42364097,0.00013697,2]
[351831298,1738806632679,-500.0,0.00013697,2]
[351831299,1738806632688,-500.0,0.00013697,2]
[351831300,1738806632698,-500.0,0.00013697,2]
[351831301,1738806632708,-500.0,0.00013697,2]
[351831302,1738806632720,-250.0,0.00013697,2]
[351831303,1738806632729,-152.12707813,0.00013697,2]
[351831304,1738806632739,-153.07631394,0.00013697,2]
[351831305,1738806632748,-274.02267466,0.00013698,2]
[351831306,1738806632759,-1.07853597,0.00013698,2]
[351831339,1738806638228,-544.97403106,0.00013698,2]
[351831341,1738806638237,-501.31901007,0.00013698,2]
[351831343,1738806638247,-501.3062286,0.00013698,2]
[351831345,1738806638256,-501.29269186,0.00013698,2]
[351831347,1738806638265,-501.30971949,0.00013698,2]
[351831349,1738806638275,-501.27627951,0.00013698,2]
[351831352,1738806638284,-501.03142461,0.00013698,2]
[351831353,1738806638294,-502.13356481,0.00013698,2]
[351831356,1738806638303,-313.11496454,0.00013698,2]